[Event "RUS-chT Men Rapid 2019"]
[Site "Sochi"]
[Date "2019.10.19"]
[Round "6.23"]
[White "Pogromsky, Mikhail"]
[Black "Keosidi, Konstantin"]
[Result "1/2-1/2"]
[ECO "D30"]
[WhiteElo "2411"]
[BlackElo "2400"]
[Annotator "NA"]
[PlyCount "114"]
[EventDate "2019.10.18"]
[EventType "swiss"]
[EventCountry "RUS"]
[SourceTitle "playchess.com"]
[Source "ChessBase"]
[SourceQuality "1"]
[TimeControl "900+10"]

1. d4 {[%emt 0:00:00]} d5 {[%emt 0:00:00]} 2. c4 {[%emt 0:00:00]} e6 {[%emt 0:00:00]} 3. Nf3 {[%emt 0:00:00]} dxc4 {[%emt 0:00:00]} 4. e3 {[%emt 0:01:12]} c5 {[%emt 0:00:03]} 5. Bxc4 {[%emt 0:00:06]} cxd4 {[%emt 0:00:03]} 6. Nxd4 {[%emt 0:00:31]} Nf6 {[%emt 0:00:33]} 7. O-O {[%emt 0:00:12]} a6 {[%emt 0:00:37]} 8. Nc3 {[%emt 0:00:20]} b5 {[%emt 0:04:35]} 9. Be2 {[%emt 0:00:40]} Bb7 {[%emt 0:00:11]} 10. Bf3 {[%emt 0:00:05]} Nd5 {[%emt 0:01:25]} 11. a4 {[%emt 0:04:33]} b4 {[%emt 0:00:15]} 12. Nxd5 {[%emt 0:00:05]} Bxd5 {[%emt 0:00:04]} 13. e4 {[%emt 0:01:37]} Bb7 {[%emt 0:00:14]} 14. Nb3 {[%emt 0:00:38]} Nc6 {[%emt 0:02:10]} 15. e5 {[%emt 0:01:13]} Qc7 {[%emt 0:00:14]} 16. Bf4 {[%emt 0:01:19]} Be7 {[%emt 0:00:40]} 17. Rc1 {[%emt 0:00:04]} Rc8 {[%emt 0:00:23]} 18. Nd4 {[%emt 0:00:37]} Qd7 {[%emt 0:00:54]} 19. Nxc6 {[%emt 0:00:31]} Bxc6 {[%emt 0:00:04]} 20. Rxc6 {[%emt 0:00:09]} Rxc6 {[%emt 0:00:13]} 21. Bxc6 {[%emt 0:00:01]} Qxc6 {[%emt 0:00:02]} 22. Qg4 {[%emt 0:00:03]} g5 {[%emt 0:01:41]} 23. Be3 {[%emt 0:01:26]} Qxa4 {[%emt 0:00:55]} 24. h4 {[%emt 0:00:37]} h6 {[%emt 0:01:39]} 25. Rc1 {[%emt 0:00:11]} Qd7 {[%emt 0:00:25]} 26. Qc4 {[%emt 0:00:43]} O-O {[%emt 0:00:49]} 27. hxg5 {[%emt 0:00:17]} hxg5 {[%emt 0:00:06]} 28. Qg4 {[%emt 0:00:12]} Qd3 {[%emt 0:00:15]} 29. Rc7 {[%emt 0:01:02]} Qb1+ {[%emt 0:00:26]} 30. Kh2 {[%emt 0:00:05]} Bd8 {[%emt 0:00:09]} 31. Rc4 {[%emt 0:00:11]} Qf5 {[%emt 0:00:19]} 32. Qxf5 {[%emt 0:00:22]} exf5 {[%emt 0:00:00]} 33. Rxb4 {[%emt 0:00:04]} Bc7 {[%emt 0:00:18]} 34. f4 {[%emt 0:00:21]} gxf4 {[%emt 0:00:10]} 35. Bxf4 {[%emt 0:00:01]} f6 {[%emt 0:00:07]} 36. exf6 {[%emt 0:00:26]} Bxf4+ {[%emt 0:00:01]} 37. Rxf4 {[%emt 0:00:01]} Rxf6 {[%emt 0:00:00]} 38. Rb4 {[%emt 0:00:29]} Kf7 {[%emt 0:00:33]} 39. Kg3 {[%emt 0:00:02]} Kg6 {[%emt 0:00:01]} 40. Kf3 {[%emt 0:00:06]} Kg5 {[%emt 0:00:06]} 41. Rb8 {[%emt 0:00:06]} Rc6 {[%emt 0:00:21]} 42. Rg8+ {[%emt 0:00:16]} Kf6 {[%emt 0:00:02]} 43. Rh8 {[%emt 0:00:04]} Ke5 {[%emt 0:00:04]} 44. Re8+ {[%emt 0:00:03]} Kf6 {[%emt 0:00:01]} 45. Re2 {[%emt 0:00:18]} Rb6 {[%emt 0:00:06]} 46. Rc2 {[%emt 0:00:01]} Ke5 {[%emt 0:00:05]} 47. Rc5+ {[%emt 0:00:02]} Kf6 {[%emt 0:00:04]} 48. Rc2 {[%emt 0:00:02]} Ke5 {[%emt 0:00:01]} 49. Re2+ {[%emt 0:00:01]} Kf6 {[%emt 0:00:05]} 50. Kf2 {[%emt 0:00:03]} Rb3 {[%emt 0:00:04]} 51. Ke1 {[%emt 0:00:05]} f4 {[%emt 0:00:10]} 52. Rc2 {[%emt 0:00:06]} Kf5 {[%emt 0:00:06]} 53. Kf2 {[%emt 0:00:02]} Kg4 {[%emt 0:00:05]} 54. Rd2 {[%emt 0:00:02]} a5 {[%emt 0:00:03]} 55. Rc2 {[%emt 0:00:01]} a4 {[%emt 0:00:09]} 56. Rd2 {[%emt 0:00:02]} a3 {[%emt 0:00:19]} 57. bxa3 {[%emt 0:00:01]} Rxa3 {[%emt 0:00:00]} 1/2-1/2

[Event "RUS-chT Men Rapid 2019"]
[Site "Sochi"]
[Date "2019.10.19"]
[Round "6.24"]
[White "Dianov, Alexey"]
[Black "Ozgibcev, Anatoly"]
[Result "1-0"]
[ECO "C47"]
[WhiteElo "2158"]
[BlackElo "2367"]
[Annotator "NA"]
[PlyCount "113"]
[EventDate "2019.10.18"]
[EventType "swiss"]
[EventCountry "RUS"]
[SourceTitle "playchess.com"]
[Source "ChessBase"]
[SourceQuality "1"]
[TimeControl "900+10"]

1. e4 {[%emt 0:00:00]} e5 {[%emt 0:00:00]} 2. Nf3 {[%emt 0:00:00]} Nc6 {[%emt 0:00:00]} 3. Nc3 {[%emt 0:00:00]} Nf6 {[%emt 0:00:11]} 4. d4 {[%emt 0:00:00]} Bb4 {[%emt 0:01:44]} 5. Nxe5 {[%emt 0:00:07]} Nxe4 {[%emt 0:00:23]} 6. Qg4 {[%emt 0:00:05]} Nxc3 {[%emt 0:00:10]} 7. Qxg7 {[%emt 0:00:05]} Rf8 {[%emt 0:00:21]} 8. a3 {[%emt 0:00:09]} Ba5 {[%emt 0:02:04]} 9. Nxc6 {[%emt 0:00:13]} dxc6 {[%emt 0:00:03]} 10. Qe5+ {[%emt 0:00:01]} Qe7 {[%emt 0:00:02]} 11. Qxe7+ {[%emt 0:00:02]} Kxe7 {[%emt 0:00:02]} 12. Bd2 {[%emt 0:00:01]} Bf5 {[%emt 0:00:08]} 13. Bxc3 {[%emt 0:00:07]} Bxc3+ {[%emt 0:00:07]} 14. bxc3 {[%emt 0:00:02]} Bxc2 {[%emt 0:00:02]} 15. Kd2 {[%emt 0:00:51]} Bg6 {[%emt 0:00:10]} 16. h4 {[%emt 0:00:22]} Kd6 {[%emt 0:01:11]} 17. Re1 {[%emt 0:02:00]} Rae8 {[%emt 0:00:20]} 18. Bc4 {[%emt 0:00:29]} Rxe1 {[%emt 0:00:37]} 19. Rxe1 {[%emt 0:00:02]} c5 {[%emt 0:00:22]} 20. g4 {[%emt 0:01:33]} h6 {[%emt 0:00:17]} 21. f4 {[%emt 0:02:37]} cxd4 {[%emt 0:00:23]} 22. cxd4 {[%emt 0:00:04]} Bh7 {[%emt 0:06:25]} 23. Re5 {[%emt 0:02:48]} Rg8 {[%emt 0:00:35]} 24. Be2 {[%emt 0:01:19]} Bg6 {[%emt 0:01:01]} 25. f5 {[%emt 0:00:46]} Bh7 {[%emt 0:00:27]} 26. Ke3 {[%emt 0:02:06]} Rf8 {[%emt 0:00:09]} 27. f6 {[%emt 0:00:36]} Bg6 {[%emt 0:00:17]} 28. Re7 {[%emt 0:00:26]} a6 {[%emt 0:00:26]} 29. h5 {[%emt 0:00:45]} Bh7 {[%emt 0:00:02]} 30. Bc4 {[%emt 0:00:05]} Bg8 {[%emt 0:00:02]} 31. Kf4 {[%emt 0:00:17]} b5 {[%emt 0:00:05]} 32. Bb3 {[%emt 0:00:08]} c5 {[%emt 0:00:32]} 33. dxc5+ {[%emt 0:00:07]} Kxc5 {[%emt 0:00:01]} 34. g5 {[%emt 0:00:19]} hxg5+ {[%emt 0:00:02]} 35. Kxg5 {[%emt 0:00:01]} a5 {[%emt 0:00:17]} 36. Re5+ {[%emt 0:00:43]} Kb6 {[%emt 0:00:24]} 37. Kh6 {[%emt 0:00:01]} Rc8 {[%emt 0:00:44]} 38. Re3 {[%emt 0:00:43]} a4 {[%emt 0:00:31]} 39. Ba2 {[%emt 0:00:38]} Rc2 {[%emt 0:00:08]} 40. Kg7 {[%emt 0:00:17]} Rxa2 {[%emt 0:00:26]} 41. Kxg8 {[%emt 0:00:01]} Rh2 {[%emt 0:00:01]} 42. Kxf7 {[%emt 0:00:32]} Rxh5 {[%emt 0:00:02]} 43. Kg6 {[%emt 0:00:06]} Rh8 {[%emt 0:00:19]} 44. Kg7 {[%emt 0:00:08]} Rh1 {[%emt 0:00:08]} 45. Re6+ {[%emt 0:00:01]} Kc5 {[%emt 0:00:03]} 46. f7 {[%emt 0:00:01]} Rf1 {[%emt 0:00:18]} 47. Rf6 {[%emt 0:00:14]} Rg1+ {[%emt 0:00:02]} 48. Rg6 {[%emt 0:00:09]} Rf1 {[%emt 0:00:02]} 49. Rg4 {[%emt 0:00:14]} b4 {[%emt 0:00:06]} 50. Rxb4 {[%emt 0:00:05]} Rg1+ {[%emt 0:00:01]} 51. Kf8 {[%emt 0:00:01]} Kd6 {[%emt 0:00:23]} 52. Rxa4 {[%emt 0:00:08]} Kd7 {[%emt 0:00:09]} 53. Rd4+ {[%emt 0:00:02]} Kc7 {[%emt 0:00:01]} 54. Ke7 {[%emt 0:00:06]} Re1+ {[%emt 0:00:02]} 55. Kf6 {[%emt 0:00:01]} Rf1+ {[%emt 0:00:01]} 56. Ke6 {[%emt 0:00:01]} Rf3 {[%emt 0:00:11]} 57. Rd5 {[%emt 0:00:07]} 1-0

[Event "RUS-chT Men Rapid 2019"]
[Site "Sochi"]
[Date "2019.10.19"]
[Round "6.25"]
[White "Zakaryan, David"]
[Black "Nozdrachev, Vladislav"]
[Result "0-1"]
[ECO "E15"]
[WhiteElo "2338"]
[BlackElo "2494"]
[Annotator "ChessBase"]
[PlyCount "99"]
[EventDate "2019.10.18"]
[EventType "swiss"]
[EventCountry "RUS"]
[SourceTitle "playchess.com"]
[Source "ChessBase"]
[SourceQuality "1"]
[TimeControl "900+10"]

1. d4 {[%emt 0:00:00]} Nf6 {[%emt 0:00:03]} 2. c4 {[%emt 0:00:01]} e6 {[%emt 0:00:02]} 3. Nf3 {[%emt 0:00:02]} b6 {[%emt 0:00:01]} 4. g3 {[%emt 0:00:10]} Ba6 {[%emt 0:00:02]} 5. Nbd2 {[%emt 0:00:11]} d5 {[%emt 0:00:13]} 6. Bg2 {[%emt 0:00:05]} Bd6 {[%emt 0:00:17]} 7. O-O {[%emt 0:00:20]} O-O {[%emt 0:00:04]} 8. Re1 {[%emt 0:00:12]} Nbd7 {[%emt 0:00:44]} 9. Qc2 {[%emt 0:00:59]} c5 {[%emt 0:00:18]} 10. e4 {[%emt 0:00:46]} dxe4 {[%emt 0:01:31]} 11. Nxe4 {[%emt 0:00:46]} Nxe4 {[%emt 0:00:02]} 12. Rxe4 {[%emt 0:00:12]} Nf6 {[%emt 0:00:10]} 13. Rh4 {[%emt 0:00:48]} Rc8 {[%emt 0:03:16]} 14. Ne5 {[%emt 0:03:01]} cxd4 {[%emt 0:00:31]} 15. Nc6 {[%emt 0:00:02]} Rxc6 {[%emt 0:00:48]} 16. Bxc6 {[%emt 0:00:01]} e5 {[%emt 0:00:02]} 17. Bg5 {[%emt 0:00:21]} h6 {[%emt 0:00:02]} 18. Bxf6 {[%emt 0:00:22]} Qxf6 {[%emt 0:00:02]} 19. Bd5 {[%emt 0:00:21]} Bc8 {[%emt 0:00:15]} 20. Qe2 {[%emt 0:01:24]} g5 {[%emt 0:01:23]} 21. Re4 {[%emt 0:00:02]} Bf5 {[%emt 0:00:55]} 22. Qf3 {[%emt 0:00:02]} Kg7 {[%emt 0:00:23]} 23. Ree1 {[%emt 0:00:32]} g4 {[%emt 0:00:03]} 24. Qd1 {[%emt 0:00:36]} Bb4 {[%emt 0:00:13]} 25. Rf1 {[%emt 0:00:53]} e4 {[%emt 0:00:14]} 26. a3 {[%emt 0:00:01]} Bd6 {[%emt 0:00:01]} 27. b4 {[%emt 0:00:01]} d3 {[%emt 0:00:40]} 28. Re1 {[%emt 0:00:42]} Re8 {[%emt 0:00:06]} 29. Ra2 {[%emt 0:00:14]} a5 {[%emt 0:00:13]} 30. bxa5 {[%emt 0:00:33]} bxa5 {[%emt 0:00:02]} 31. Rd2 {[%emt 0:00:17]} Qc3 {[%emt 0:00:43]} 32. Re3 {[%emt 0:00:14]} Re7 {[%emt 0:01:03]} 33. Bxe4 {[%emt 0:01:31]} Bxe4 {[%emt 0:00:10]} 34. Qxg4+ {[%emt 0:00:17]} Kf8 {[%emt 0:00:34]} 35. Rxe4 {[%emt 0:01:46]} Rxe4 {[%emt 0:00:11]} 36. Qxe4 {[%emt 0:00:12]} Qxd2 {[%emt 0:00:02]} 37. Qd4 {[%emt 0:00:16]} Qc1+ {[%emt 0:00:38]} 38. Kg2 {[%emt 0:00:02]} Qxa3 {[%emt 0:00:01]} 39. Qh8+ {[%emt 0:00:33]} Ke7 {[%emt 0:00:01]} 40. Qxh6 {[%emt 0:00:01]} Qc5 {[%emt 0:00:31]} 41. Qh4+ {[%emt 0:00:10]} Kd7 {[%emt 0:00:02]} 42. Qg4+ {[%emt 0:00:15]} Kc7 {[%emt 0:00:03]} 43. h4 {[%emt 0:00:31]} d2 {[%emt 0:00:04]} 44. h5 {[%emt 0:00:09]} Qc6+ {[%emt 0:00:02]} 45. Kh2 {[%emt 0:00:02]} Qa4 {[%emt 0:00:06]} 46. Qd4 {[%emt 0:00:14]} d1=Q {[%emt 0:00:12]} 47. Qa7+ {[%emt 0:00:02]} Kd8 {[%emt 0:00:01]} 48. Qa8+ {[%emt 0:00:03]} Kd7 {[%emt 0:00:05]} 49. Qa7+ {[%emt 0:00:16]} Bc7 {[%emt 0:00:02]} 50. Qc5 {[%emt 0:00:03]} 0-1

[Event "RUS-chT Men Rapid 2019"]
[Site "Sochi"]
[Date "2019.10.19"]
[Round "6.26"]
[White "Vakhlamov, Igor L."]
[Black "Nazaretyan, Tigran"]
[Result "0-1"]
[ECO "B31"]
[WhiteElo "2413"]
[BlackElo "2297"]
[Annotator "NA"]
[PlyCount "92"]
[EventDate "2019.10.18"]
[EventType "swiss"]
[EventCountry "RUS"]
[SourceTitle "playchess.com"]
[Source "ChessBase"]
[SourceQuality "1"]
[TimeControl "900+10"]

1. e4 {[%emt 0:00:00]} c5 {[%emt 0:00:00]} 2. Nf3 {[%emt 0:00:00]} Nc6 {[%emt 0:00:00]} 3. Bb5 {[%emt 0:00:00]} g6 {[%emt 0:00:00]} 4. Bxc6 {[%emt 0:00:04]} dxc6 {[%emt 0:00:00]} 5. d3 {[%emt 0:00:02]} Bg7 {[%emt 0:00:00]} 6. h3 {[%emt 0:00:01]} Nf6 {[%emt 0:00:00]} 7. Nc3 {[%emt 0:00:03]} Nd7 {[%emt 0:00:01]} 8. Be3 {[%emt 0:00:10]} e5 {[%emt 0:00:09]} 9. Qd2 {[%emt 0:00:31]} h6 {[%emt 0:00:02]} 10. O-O {[%emt 0:00:03]} Qe7 {[%emt 0:00:06]} 11. Nh2 {[%emt 0:00:07]} Nf8 {[%emt 0:00:03]} 12. f4 {[%emt 0:00:08]} exf4 {[%emt 0:00:01]} 13. Bxf4 {[%emt 0:00:01]} Ne6 {[%emt 0:00:01]} 14. Bg3 {[%emt 0:00:01]} h5 {[%emt 0:00:51]} 15. Rae1 {[%emt 0:01:50]} h4 {[%emt 0:01:29]} 16. Bf2 {[%emt 0:00:02]} Nd4 {[%emt 0:00:01]} 17. Nd5 {[%emt 0:05:01]} Qd6 {[%emt 0:00:39]} 18. Ne3 {[%emt 0:02:16]} Be6 {[%emt 0:03:11]} 19. c3 {[%emt 0:00:47]} Nb5 {[%emt 0:00:41]} 20. Nf5 {[%emt 0:02:39]} gxf5 {[%emt 0:00:48]} 21. exf5 {[%emt 0:00:01]} O-O-O {[%emt 0:01:10]} 22. fxe6 {[%emt 0:00:01]} fxe6 {[%emt 0:00:35]} 23. Qg5 {[%emt 0:01:28]} Bf8 {[%emt 0:02:49]} 24. Bxh4 {[%emt 0:00:51]} Bh6 {[%emt 0:00:04]} 25. Qe5 {[%emt 0:00:57]} Qxe5 {[%emt 0:00:30]} 26. Rxe5 {[%emt 0:00:01]} Rxd3 {[%emt 0:00:01]} 27. Rxe6 {[%emt 0:01:00]} Rd2 {[%emt 0:00:46]} 28. Ng4 {[%emt 0:00:38]} Bg7 {[%emt 0:00:23]} 29. Rf7 {[%emt 0:00:09]} Bxc3 {[%emt 0:00:21]} 30. bxc3 {[%emt 0:00:08]} Rxh4 {[%emt 0:00:01]} 31. c4 {[%emt 0:00:22]} Nd6 {[%emt 0:00:28]} 32. Rg7 {[%emt 0:00:29]} Nxc4 {[%emt 0:00:10]} 33. Re8+ {[%emt 0:00:15]} Rd8 {[%emt 0:00:03]} 34. Ree7 {[%emt 0:00:01]} Nd6 {[%emt 0:00:12]} 35. Ne5 {[%emt 0:00:24]} Rb4 {[%emt 0:00:12]} 36. Nd3 {[%emt 0:00:16]} Rb1+ {[%emt 0:00:02]} 37. Kh2 {[%emt 0:00:01]} Nf5 {[%emt 0:00:16]} 38. Rc7+ {[%emt 0:00:01]} Kb8 {[%emt 0:00:00]} 39. Rgd7 {[%emt 0:00:13]} Rxd7 {[%emt 0:00:12]} 40. Rxd7 {[%emt 0:00:01]} c4 {[%emt 0:00:06]} 41. Nc5 {[%emt 0:00:01]} c3 {[%emt 0:00:04]} 42. Ne6 {[%emt 0:00:43]} a5 {[%emt 0:00:12]} 43. Rd8+ {[%emt 0:00:08]} Ka7 {[%emt 0:00:03]} 44. Nc5 {[%emt 0:00:07]} c2 {[%emt 0:00:05]} 45. Nd3 {[%emt 0:00:00]} Rd1 {[%emt 0:00:03]} 46. g4 {[%emt 0:00:01]} Rxd3 {[%emt 0:00:04]} 0-1

[Event "RUS-chT Men Rapid 2019"]
[Site "Sochi"]
[Date "2019.10.19"]
[Round "6.27"]
[White "Ivlev, Aleksey"]
[Black "Tsoi, Dmitry"]
[Result "1/2-1/2"]
[ECO "B07"]
[WhiteElo "2292"]
[BlackElo "2329"]
[Annotator "NA"]
[PlyCount "206"]
[EventDate "2019.10.18"]
[EventType "swiss"]
[EventCountry "RUS"]
[SourceTitle "playchess.com"]
[Source "ChessBase"]
[SourceQuality "1"]
[TimeControl "900+10"]

1. e4 {[%emt 0:00:00]} d6 {[%emt 0:00:00]} 2. d4 {[%emt 0:00:00]} Nf6 {[%emt 0:00:00]} 3. Nc3 {[%emt 0:00:00]} e5 {[%emt 0:00:00]} 4. Nge2 {[%emt 0:00:00]} Be7 {[%emt 0:00:00]} 5. g3 {[%emt 0:00:00]} O-O {[%emt 0:00:08]} 6. Bg2 {[%emt 0:00:01]} c6 {[%emt 0:00:05]} 7. O-O {[%emt 0:00:03]} b5 {[%emt 0:00:02]} 8. a3 {[%emt 0:00:02]} Nbd7 {[%emt 0:00:03]} 9. h3 {[%emt 0:00:04]} Bb7 {[%emt 0:00:05]} 10. Be3 {[%emt 0:00:02]} a5 {[%emt 0:00:10]} 11. g4 {[%emt 0:00:05]} b4 {[%emt 0:00:09]} 12. dxe5 {[%emt 0:01:50]} dxe5 {[%emt 0:00:24]} 13. Na4 {[%emt 0:00:05]} c5 {[%emt 0:00:16]} 14. Ng3 {[%emt 0:00:13]} Bc6 {[%emt 0:01:13]} 15. c3 {[%emt 0:00:56]} b3 {[%emt 0:01:49]} 16. Qxb3 {[%emt 0:00:29]} Rb8 {[%emt 0:00:10]} 17. Qc2 {[%emt 0:00:17]} c4 {[%emt 0:00:01]} 18. Rad1 {[%emt 0:00:35]} h6 {[%emt 0:04:05]} 19. Nc5 {[%emt 0:00:47]} Bxc5 {[%emt 0:00:02]} 20. Bxc5 {[%emt 0:00:01]} Nxc5 {[%emt 0:00:01]} 21. Rxd8 {[%emt 0:00:02]} Rfxd8 {[%emt 0:00:01]} 22. Nf5 {[%emt 0:02:53]} Ba4 {[%emt 0:00:11]} 23. Qc1 {[%emt 0:00:43]} Nd3 {[%emt 0:00:12]} 24. Qe3 {[%emt 0:00:12]} Nh7 {[%emt 0:05:35]} 25. Qa7 {[%emt 0:00:42]} Ng5 {[%emt 0:00:43]} 26. Qxa5 {[%emt 0:00:50]} Be8 {[%emt 0:01:15]} 27. Qc7 {[%emt 0:00:56]} Bb5 {[%emt 0:01:04]} 28. Nd6 {[%emt 0:01:36]} Be8 {[%emt 0:01:11]} 29. Nxe8 {[%emt 0:00:39]} Rbc8 {[%emt 0:00:15]} 30. Qb6 {[%emt 0:02:17]} Rxe8 {[%emt 0:00:02]} 31. Rb1 {[%emt 0:01:00]} Ne6 {[%emt 0:00:11]} 32. b4 {[%emt 0:00:21]} cxb3 {[%emt 0:00:33]} 33. Qxb3 {[%emt 0:00:24]} Nef4 {[%emt 0:00:18]} 34. Bf1 {[%emt 0:00:04]} Nc5 {[%emt 0:00:01]} 35. Qc2 {[%emt 0:00:02]} Nce6 {[%emt 0:00:04]} 36. Qd2 {[%emt 0:00:28]} Red8 {[%emt 0:00:11]} 37. Qe3 {[%emt 0:00:02]} Ra8 {[%emt 0:00:13]} 38. Ra1 {[%emt 0:00:10]} Ra4 {[%emt 0:00:18]} 39. Bb5 {[%emt 0:00:17]} Ra5 {[%emt 0:00:01]} 40. a4 {[%emt 0:00:07]} Ng5 {[%emt 0:00:11]} 41. h4 Nge6 42. Qe1 {[%emt 0:00:54]} Ng6 {[%emt 0:00:29]} 43. f3 {[%emt 0:00:23]} Ngf4 {[%emt 0:00:01]} 44. Rd1 {[%emt 0:00:01]} Rda8 {[%emt 0:00:08]} 45. Qe3 {[%emt 0:01:01]} Rxa4 {[%emt 0:00:05]} 46. Bxa4 {[%emt 0:00:01]} Rxa4 {[%emt 0:00:01]} 47. Rd2 {[%emt 0:00:18]} Rc4 {[%emt 0:00:25]} 48. Rb2 {[%emt 0:00:45]} Kh7 {[%emt 0:00:04]} 49. Kh2 {[%emt 0:00:04]} Ng6 {[%emt 0:00:01]} 50. Kg3 Ra4 51. Rc2 {[%emt 0:00:26]} Rc4 {[%emt 0:00:12]} 52. Qd3 {[%emt 0:00:04]} Rc5 {[%emt 0:00:01]} 53. Qd6 {[%emt 0:00:06]} Ngf4 {[%emt 0:00:13]} 54. c4 {[%emt 0:00:11]} f6 {[%emt 0:00:23]} 55. Kf2 {[%emt 0:00:24]} Rc8 {[%emt 0:00:06]} 56. Kg3 {[%emt 0:00:06]} Nd4 {[%emt 0:00:08]} 57. Qxd4 {[%emt 0:00:14]} Ne2+ {[%emt 0:00:31]} 58. Rxe2 {[%emt 0:00:08]} exd4 {[%emt 0:00:01]} 59. Rc2 {[%emt 0:00:12]} d3 {[%emt 0:00:02]} 60. Rd2 {[%emt 0:00:01]} Rxc4 {[%emt 0:00:03]} 61. Rxd3 {[%emt 0:00:00]} g5 {[%emt 0:00:10]} 62. Rd7+ {[%emt 0:00:03]} Kg8 {[%emt 0:00:01]} 63. hxg5 {[%emt 0:00:21]} hxg5 {[%emt 0:00:01]} 64. Kf2 {[%emt 0:00:05]} Kf8 {[%emt 0:00:13]} 65. Ke3 {[%emt 0:00:06]} Rc3+ {[%emt 0:00:06]} 66. Rd3 {[%emt 0:00:03]} Rc4 {[%emt 0:00:01]} 67. e5 {[%emt 0:00:17]} fxe5 {[%emt 0:00:12]} 68. Rd5 {[%emt 0:00:06]} Kf7 {[%emt 0:00:02]} 69. Rxe5 {[%emt 0:00:01]} Kf6 {[%emt 0:00:01]} 70. Ra5 {[%emt 0:00:06]} Rb4 {[%emt 0:00:04]} 71. Ra6+ {[%emt 0:00:02]} Kf7 {[%emt 0:00:02]} 72. Rd6 {[%emt 0:00:01]} Ra4 {[%emt 0:00:40]} 73. Rd4 {[%emt 0:00:01]} Ra3+ {[%emt 0:00:24]} 74. Ke4 {[%emt 0:00:01]} Kf6 {[%emt 0:00:04]} 75. Rd6+ {[%emt 0:00:57]} Kg7 {[%emt 0:00:01]} 76. Rd3 {[%emt 0:00:00]} Ra5 {[%emt 0:00:08]} 77. Rd5 {[%emt 0:00:23]} Ra4+ {[%emt 0:00:00]} 78. Ke3 {[%emt 0:00:28]} Kg6 {[%emt 0:00:02]} 79. Rb5 {[%emt 0:00:01]} Ra3+ {[%emt 0:00:06]} 80. Kf2 {[%emt 0:00:01]} Ra2+ {[%emt 0:00:01]} 81. Kg3 {[%emt 0:00:01]} Rc2 {[%emt 0:00:02]} 82. Rb6+ {[%emt 0:00:05]} Kg7 {[%emt 0:00:01]} 83. Re6 {[%emt 0:00:03]} Ra2 {[%emt 0:00:03]} 84. Re1 {[%emt 0:00:01]} Kf6 {[%emt 0:00:03]} 85. Rh1 {[%emt 0:00:01]} Rb2 {[%emt 0:00:06]} 86. Rh2 {[%emt 0:00:03]} Rb3 {[%emt 0:00:01]} 87. Re2 {[%emt 0:00:06]} Ra3 {[%emt 0:00:03]} 88. Kf2 {[%emt 0:00:01]} Rb3 {[%emt 0:00:01]} 89. Rd2 {[%emt 0:00:01]} Ra3 {[%emt 0:00:01]} 90. Ke2 {[%emt 0:00:01]} Rb3 {[%emt 0:00:08]} 91. Rd3 {[%emt 0:00:01]} Rb4 {[%emt 0:00:03]} 92. Ke3 {[%emt 0:00:00]} Ra4 {[%emt 0:00:04]} 93. Rd6+ {[%emt 0:00:07]} Kg7 {[%emt 0:00:08]} 94. Rd4 {[%emt 0:00:01]} Ra3+ {[%emt 0:00:02]} 95. Ke4 {[%emt 0:00:01]} Kg6 {[%emt 0:00:11]} 96. Rd6+ {[%emt 0:00:44]} Kg7 {[%emt 0:00:01]} 97. Rd3 {[%emt 0:00:09]} Ra5 {[%emt 0:00:15]} 98. Rd5 {[%emt 0:00:05]} Ra4+ {[%emt 0:00:01]} 99. Kf5 {[%emt 0:00:01]} Rf4+ {[%emt 0:00:01]} 100. Kxg5 {[%emt 0:00:01]} Rxf3 {[%emt 0:00:01]} 101. Rd7+ {[%emt 0:00:03]} Kg8 {[%emt 0:00:03]} 102. Kh6 {[%emt 0:00:09]} Rf6+ {[%emt 0:00:01]} 103. Kh5 {[%emt 0:00:01]} Rb6 {[%emt 0:00:02]} 1/2-1/2

[Event "RUS-chT Men Rapid 2019"]
[Site "Sochi"]
[Date "2019.10.19"]
[Round "6.28"]
[White "Frolov, Aleksey G."]
[Black "Tenikashvili, Georgij"]
[Result "1-0"]
[ECO "B12"]
[WhiteElo "2093"]
[BlackElo "2337"]
[Annotator "NA"]
[PlyCount "100"]
[EventDate "2019.10.18"]
[EventType "swiss"]
[EventCountry "RUS"]
[SourceTitle "playchess.com"]
[Source "ChessBase"]
[SourceQuality "1"]
[TimeControl "900+10"]

1. e4 {[%emt 0:00:00]} c6 {[%emt 0:00:00]} 2. d4 {[%emt 0:00:00]} d5 {[%emt 0:00:00]} 3. e5 {[%emt 0:00:00]} Bf5 {[%emt 0:00:00]} 4. Nd2 {[%emt 0:00:00]} e6 {[%emt 0:00:08]} 5. Nb3 {[%emt 0:00:00]} Nd7 {[%emt 0:00:26]} 6. Nf3 {[%emt 0:00:01]} h6 {[%emt 0:00:09]} 7. Be2 {[%emt 0:00:06]} Ne7 {[%emt 0:00:03]} 8. O-O {[%emt 0:00:07]} Ng6 {[%emt 0:02:23]} 9. Ne1 {[%emt 0:00:36]} Ne7 {[%emt 0:02:40]} 10. g4 {[%emt 0:00:20]} Bh7 {[%emt 0:00:03]} 11. f4 {[%emt 0:00:03]} Qc7 {[%emt 0:00:23]} 12. Bd3 {[%emt 0:01:22]} Bxd3 {[%emt 0:00:45]} 13. Nxd3 {[%emt 0:00:02]} O-O-O {[%emt 0:00:28]} 14. f5 {[%emt 0:00:03]} b6 {[%emt 0:02:49]} 15. fxe6 {[%emt 0:00:14]} fxe6 {[%emt 0:00:03]} 16. Nf4 {[%emt 0:00:05]} Re8 {[%emt 0:00:30]} 17. Nxe6 {[%emt 0:00:18]} Qb7 {[%emt 0:00:02]} 18. Qe2 {[%emt 0:00:37]} g5 {[%emt 0:01:23]} 19. Bd2 {[%emt 0:00:54]} Ng6 {[%emt 0:00:15]} 20. Nxf8 {[%emt 0:00:04]} Rhxf8 {[%emt 0:00:06]} 21. c4 {[%emt 0:02:19]} c5 {[%emt 0:03:19]} 22. Rxf8 {[%emt 0:01:43]} Rxf8 {[%emt 0:00:10]} 23. e6 {[%emt 0:00:11]} Nf6 {[%emt 0:00:10]} 24. Rf1 {[%emt 0:00:50]} dxc4 {[%emt 0:00:52]} 25. Nc1 {[%emt 0:04:02]} Ne4 {[%emt 0:00:09]} 26. Rf5 {[%emt 0:01:00]} Re8 {[%emt 0:00:31]} 27. d5 {[%emt 0:00:19]} Nd6 {[%emt 0:00:24]} 28. Rf6 {[%emt 0:00:01]} Nh4 {[%emt 0:00:09]} 29. Qe5 {[%emt 0:00:41]} Qc7 {[%emt 0:00:04]} 30. Be1 {[%emt 0:01:53]} Nb5 {[%emt 0:00:02]} 31. Qe4 {[%emt 0:00:27]} Qg7 {[%emt 0:00:27]} 32. Rf7 {[%emt 0:00:22]} Qd4+ {[%emt 0:00:11]} 33. Qxd4 {[%emt 0:00:03]} cxd4 {[%emt 0:00:01]} 34. Ne2 {[%emt 0:00:57]} d3 {[%emt 0:01:03]} 35. Nc3 {[%emt 0:00:07]} Nd6 {[%emt 0:00:06]} 36. Rd7 {[%emt 0:00:10]} Nf3+ {[%emt 0:00:05]} 37. Kf2 {[%emt 0:00:26]} Nxe1 {[%emt 0:00:23]} 38. Kxe1 {[%emt 0:00:01]} Nb7 {[%emt 0:00:01]} 39. Nb5 {[%emt 0:00:08]} Rg8 {[%emt 0:00:30]} 40. Nxa7+ {[%emt 0:00:07]} Kb8 {[%emt 0:00:01]} 41. Nc6+ {[%emt 0:00:01]} Ka8 {[%emt 0:00:02]} 42. e7 {[%emt 0:00:07]} Re8 {[%emt 0:00:17]} 43. Kd2 {[%emt 0:00:01]} b5 {[%emt 0:00:05]} 44. d6 {[%emt 0:00:13]} Rc8 {[%emt 0:00:04]} 45. Rxb7 {[%emt 0:00:17]} Kxb7 {[%emt 0:00:02]} 46. d7 {[%emt 0:00:03]} Rxc6 {[%emt 0:00:09]} 47. d8=Q {[%emt 0:00:11]} b4 {[%emt 0:00:02]} 48. Qd7+ {[%emt 0:00:03]} Kb6 {[%emt 0:00:02]} 49. e8=Q {[%emt 0:00:08]} c3+ {[%emt 0:00:01]} 50. bxc3 {[%emt 0:00:02]} bxc3+ {[%emt 0:00:01]} 1-0